[Event "FIDE WSTC Open 50 2025"]
[Site "Prague"]
[Date "2025.02.25"]
[Round "8.18"]
[White "Ning, Chunhong"]
[Black "Varga, Zoltan"]
[Result "1/2-1/2"]
[Annotator "TA"]
[ECO "D04"]
[WhiteElo "2257"]
[BlackElo "2301"]
[PlyCount "30"]
[EventDate "2025.02.17"]
[EventType "team-tourn"]
[EventCountry "CZE"]
[SourceTitle "playchess.com"]
[Source "ChessBase"]
[SourceQuality "1"]
[TimeControl "40/5400+30:1800+30"]

{[%evp 10,30,20,4,10,-3,-4,-14,-2,-5,-10,-23,-17,-14,-11,-1,-13,-21,-12,-21,-16,-14,-8]} 1. d4 {[%emt 0:00:08]} d5 {[%emt 0:00:09]} 2. Nf3 {[%emt 0:00:14]} Nf6 {[%emt 0:00:16]} 3. e3 {[%emt 0:00:35]} g6 {[%emt 0:05:08]} 4. b3 {[%emt 0:04:08]} Bg7 {[%emt 0:01:47]} 5. Bb2 {[%emt 0:00:10]} O-O {[%emt 0:00:05]} 6. Be2 {[%emt 0:00:31]} c5 {[%emt 0:00:10] D04: Colle System.} 7. c3 {[%emt 0:15:58]} (7. dxc5 {feels hotter.} Qa5+ 8. Nbd2 Ne4 9. Bxg7 Kxg7 10. c4) 7... Nc6 {[%emt 0:07:16]} 8. O-O {[%emt 0:00:46]} Nd7 {[%emt 0:07:39]} 9. Nbd2 {[%emt 0:03:30]} e5 {[%emt 0:01:17]} 10. Nxe5 $146 {[%emt 0:08:43]} (10. dxe5 Ndxe5 11. Nxe5 Nxe5 12. Rc1 Bf5 13. Nf3 Nc6 14. Qd2 Qa5 15. a3 Rad8 16. b4 {1-0 Ferriz Barrios,A (2102)-Injac,T (2424) Titled Tuesday intern op 11th Jun Late blitz 2024 (4)}) 10... Ndxe5 {[%emt 0:02:06]} 11. dxe5 {[%emt 0:01:11] The position is equal.} Bxe5 {[%emt 0:03:05]} 12. Nf3 {[%emt 0:00:27] Strongly threatening Nxe5.} Bg7 {[%emt 0:00:25]} 13. Qd2 {[%emt 0:06:50]} Be6 {[%emt 0:01:12]} 14. Rfd1 {[%emt 0:01:06]} Qe7 {[%emt 0:01:15]} 15. Ba3 {[%emt 0:04:39]} b6 {[%emt 0:06:42] A rather calm draw.   Weighted Error Value: White=0.06 (flawless) /Black=0.02 (flawless)   OK:         	White=3     	Black=4} 1/2-1/2

[Event "FIDE WSTC Open 50 2025"]
[Site "Prague"]
[Date "2025.02.25"]
[Round "8.19"]
[White "Horvath, Peter"]
[Black "Guo, Yun"]
[Result "1-0"]
[Annotator "TA"]
[ECO "A55"]
[WhiteElo "2354"]
[BlackElo "2213"]
[PlyCount "117"]
[EventDate "2025.02.17"]
[EventType "team-tourn"]
[EventCountry "CZE"]
[SourceTitle "playchess.com"]
[Source "ChessBase"]
[SourceQuality "1"]
[TimeControl "40/5400+30:1800+30"]

{[%evp 18,117,65,44,70,62,75,70,76,76,75,79,72,72,70,70,70,67,78,68,69,69,69,69,71,58,49,50,53,39,48,0,35,43,82,53,68,56,70,56,72,37,48,54,39,34,44,42,218,212,197,109,101,66,99,94,91,61,86,90,108,106,117,102,111,118,124,108,180,157,235,222,263,143,410,161,145,145,158,139,231,217,278,278,356,353,642,641,841,841,837,831,827,721,727,727,727,727,727,727,719,719]} 1. d4 {[%emt 0:00:04]} d6 {[%emt 0:00:14]} 2. Nf3 {[%emt 0:00:24]} Nd7 {[%emt 0:00:05]} 3. c4 {[%emt 0:00:41]} e5 {[%emt 0:00:14]} 4. Nc3 {[%emt 0:00:52]} Ngf6 {[%emt 0:01:03]} 5. e4 {[%emt 0:01:21]} c6 {[%emt 0:00:23]} 6. Be2 {[%emt 0:01:41]} Be7 {[%emt 0:00:19]} 7. O-O {[%emt 0:00:33]} O-O {[%emt 0:00:08]} 8. Qc2 {[%emt 0:05:59]} a6 {[%emt 0:01:31]} 9. Rd1 {[%emt 0:04:09]} Qc7 {[%emt 0:00:11]} 10. Be3 {[%emt 0:03:56]} Re8 {[%emt 0:18:14] A55: Old Indian Defence with Nf3 and e4.} 11. Rac1 {[%emt 0:04:35]} b6 {[%emt 0:12:20]} 12. a3 $146 {[%emt 0:05:24]} ({Predecessor:} 12. d5 c5 13. Rb1 Rf8 14. a3 Ne8 15. b4 g6 16. Bh6 Ng7 17. Bd3 Nf6 18. h3 {1-0 Dydyshko,V (2564)-Tibensky,R (2431) SVK-chT 0708 2007 (5)}) 12... a5 {[%emt 0:05:52] White is slightly better.} 13. b4 {[%emt 0:07:19]} axb4 {[%emt 0:00:09]} 14. axb4 {[%emt 0:00:06]} Bb7 {[%emt 0:03:12]} 15. h3 {[%emt 0:08:09]} Bf8 {[%emt 0:02:35]} 16. d5 {[%emt 0:04:44]} c5 {[%emt 0:08:59]} 17. Rb1 {[%emt 0:02:08]} Ba6 {[%emt 0:04:12]} 18. Nd2 {[%emt 0:01:29]} Rec8 {[%emt 0:03:35]} 19. Rb3 {[%emt 0:04:06]} Be7 {[%emt 0:04:56]} 20. Qb2 {[%emt 0:01:50]} Bd8 {[%emt 0:01:44]} 21. Ra1 {[%emt 0:00:57]} cxb4 {[%emt 0:03:49]} 22. Rxb4 {[%emt 0:01:17] Strong Rooks White (a1+b4)} Nc5 {[%emt 0:00:06] Space Advantage White Dodges Rba4} 23. Na4 {[%emt 0:07:30][%csl Ob6][%cal Ra4b6] White attacks a weakness} Rcb8 {[%emt 0:00:22]} 24. Nc3 {[%emt 0:07:28]} (24. Rb1 $14 {is more appropriate.}) 24... h6 {[%emt 0:02:59]} 25. Rb1 {[%emt 0:00:40]} Qe7 {[%emt 0:02:40]} 26. Qc2 {[%emt 0:02:34]} Bc7 {[%emt 0:00:19]} 27. R4b2 {[%emt 0:02:26]} Qd8 {[%emt 0:02:46]} 28. Rc1 {[%emt 0:04:56]} Qe7 {[%emt 0:00:08]} 29. Ndb1 {[%emt 0:02:36]} Bd8 {[%emt 0:01:52]} 30. Na3 {[%emt 0:00:45]} Bc8 {[%emt 0:05:39]} 31. Nab5 {[%emt 0:01:17]} Ra6 {[%emt 0:00:33]} 32. Na2 {[%emt 0:03:07]} Rxa2 {[%emt 0:06:50]} 33. Rxa2 $18 {[%emt 0:00:09]} Nfxe4 {[%emt 0:00:02]} 34. Bxc5 {[%emt 0:04:50]} (34. Bf3 $18 Ng5 35. Bh5) 34... Nxc5 $16 {[%emt 0:00:06]} 35. Bg4 {[%emt 0:01:02]} Bb7 {[%emt 0:00:26]} 36. Re1 {[%emt 0:01:33]} g6 {[%emt 0:00:18]} 37. Qd2 {[%emt 0:02:39]} Kh7 {[%emt 0:00:53]} 38. Ra7 {[%emt 0:01:11]} f5 {[%emt 0:00:16]} 39. Bd1 {[%emt 0:00:27]} Qf8 {[%emt 0:02:20]} 40. Bc2 {[%emt 0:01:43]} Bg5 {[%emt 0:02:33]} 41. Qe2 {[%emt 0:31:35]} Kh8 {[%emt 0:30:26]} 42. Nc3 {[%emt 0:00:00]} Bf6 {[%emt 0:00:00] Black is weak on the light squares} (42... Ra8 $16 43. Rxa8 Qxa8) 43. Rb1 {[%emt 0:00:00]} Bd8 {[%emt 0:00:00]} (43... e4 $16) 44. Na4 $18 {[%emt 0:00:00]} Nd7 {[%emt 0:00:00] [#]} 45. Qe3 {[%emt 0:00:00]} (45. c5 $1 $18 {[%cal Rc5c6] Threatens to win with c6.} dxc5 46. Qb5) 45... Bc8 $2 {[%emt 0:00:00][%mdl 8192] [#]} (45... Kg8 $16 46. Bd3 e4) 46. f3 $2 {[%emt 0:00:00]} (46. c5 $1) 46... Bg5 {[%emt 0:00:00]} 47. Qf2 $36 {[%emt 0:00:00][%cal Ra4b6][%mdl 2048] White is in control. White is much more active.} Bd8 {[%emt 0:00:00]} 48. Kh1 {[%emt 0:00:00]} Qe8 {[%emt 0:00:00]} (48... Kg8 $16 {keeps fighting.} 49. Qe2 Qe7) 49. Bd3 {[%emt 0:00:00]} Kg8 {[%emt 0:00:00]} 50. Qe1 {[%emt 0:00:00][%cal Oc4c5]} Bb7 {[%emt 0:00:00]} 51. c5 {[%emt 0:00:00]} dxc5 {[%emt 0:00:00]} (51... Nxc5 52. Nxc5 (52. Nxb6 Nxd3 53. Qe3 Nc5 $19) 52... dxc5) 52. Bb5 {[%emt 0:00:00] White is clearly winning.} Bc7 {[%emt 0:00:00] [#]} 53. d6 $1 {[%emt 0:00:00][%mdl 512]} Bd8 {[%emt 0:00:00]} 54. Bxd7 {[%emt 0:02:32]} Qxd7 {[%emt 0:00:00]} 55. Nxb6 {[%emt 0:00:23][%cal Ba4b6,Bb6c4,Bc4e5,Be5d7][%mdl 32]} Qxd6 {[%emt 0:01:12]} 56. Nc4 {[%emt 0:00:13][%csl LRb7,LRd6,LRe5]} Qd5 {[%emt 0:01:11]} 57. Qxe5 {[%emt 0:01:10]} Qxe5 {[%emt 0:04:25]} 58. Nxe5 {[%emt 0:00:06]} Bc7 {[%emt 0:00:15]} 59. Nd7 {[%emt 0:00:28] Weighted Error Value: White=0.22 (precise) /Black=0.41  Loses game:     	---       	Black=2      Mistake:       	White=4     	Black=4      Inaccurate:     	White=4     	Black=4      OK:         	White=12    	Black=11     Best:        	White=2     	---} ({Weaker is} 59. Raxb7 Rxb7 60. Rxb7 Bxe5 $18) 1-0

[Event "FIDE WSTC Open 50 2025"]
[Site "Prague"]
[Date "2025.02.25"]
[Round "8.20"]
[White "Liang, Zhihua"]
[Black "Krizsany, Laszlo"]
[Result "1/2-1/2"]
[Annotator "TA"]
[ECO "B00"]
[WhiteElo "2205"]
[BlackElo "2303"]
[PlyCount "37"]
[EventDate "2025.02.17"]
[EventType "team-tourn"]
[EventCountry "CZE"]
[SourceTitle "playchess.com"]
[Source "ChessBase"]
[SourceQuality "1"]
[TimeControl "40/5400+30:1800+30"]

{[%evp 10,37,60,22,21,29,24,21,37,27,80,47,54,52,52,50,41,29,62,56,74,74,75,72,87,66,95,79,68,49]} 1. e4 {[%emt 0:00:25]} b6 {[%emt 0:00:13]} 2. d4 {[%emt 0:00:35]} Bb7 {[%emt 0:00:12]} 3. Bd3 {[%emt 0:00:38]} e6 {[%emt 0:00:15]} 4. Nf3 {[%emt 0:00:18]} c5 {[%emt 0:00:16]} 5. c3 {[%emt 0:00:54]} Nf6 {[%emt 0:00:20]} 6. Nbd2 {[%emt 0:00:47]} d5 $1 {[%emt 0:01:06][%mdl 4] is recently more successful than 6...Nc6. B00: Queen's Fianchetto Defence, Nimzowitsch Defence.} 7. e5 {[%emt 0:00:24]} Nfd7 {[%emt 0:00:38]} 8. O-O {[%emt 0:00:56]} Be7 {[%emt 0:04:48] The position is equal.} 9. Re1 {[%emt 0:01:06]} cxd4 {[%emt 0:06:54]} (9... O-O $11 {keeps the balance.}) 10. cxd4 {[%emt 0:00:56]} Ba6 {[%emt 0:00:36]} 11. Bb1 {[%emt 0:03:34][%cal Od2e4]} Nc6 {[%emt 0:01:56]} 12. Nf1 {[%emt 0:01:02][%cal Bd2f1,Bf1g3,Bg3e2,Be2f4][%mdl 32]} Rc8 {[%emt 0:07:16]} 13. Ng3 $146 {[%emt 0:00:53]} (13. Ne3 Nf8 14. Bd2 Ng6 15. g3 Qd7 16. h4 Bb4 17. h5 Bxd2 18. Qxd2 Nge7 19. h6 gxh6 {1-0 Lima,D (2489)-Pinto,C (2078) Maceio op 2011 (3)}) 13... h5 {[%emt 0:02:34]} 14. h3 {[%emt 0:02:22]} Rc7 {[%emt 0:09:30]} 15. Be3 {[%emt 0:11:24]} g6 {[%emt 0:04:42]} 16. Ne2 {[%emt 0:02:28]} Qc8 {[%emt 0:01:00]} 17. Nf4 {[%emt 0:13:58]} Nf8 {[%emt 0:02:13]} 18. Nd3 {[%emt 0:06:43]} Bb5 {[%emt 0:05:41]} 19. b3 {[%emt 0:06:01] Weighted Error Value: White=0.10 (very precise) /Black=0.13 (very precise)   Mistake:       	---       	Black=1      Inaccurate:     	White=1     	Black=2      OK:         	White=5     	Black=4} 1/2-1/2

[Event "FIDE WSTC Open 50 2025"]
[Site "Prague"]
[Date "2025.02.25"]
[Round "8.21"]
[White "Polak, Tomas"]
[Black "Bryson, Douglas M"]
[Result "1-0"]
[Annotator "TA"]
[ECO "D45"]
[WhiteElo "2463"]
[BlackElo "2295"]
[PlyCount "89"]
[EventDate "2025.02.17"]
[EventType "team-tourn"]
[EventCountry "CZE"]
[SourceTitle "playchess.com"]
[Source "ChessBase"]
[SourceQuality "1"]
[TimeControl "40/5400+30:1800+30"]

{[%evp 15,89,12,15,9,19,6,33,31,37,26,23,0,0,0,0,0,6,-19,60,41,64,63,137,124,112,118,100,67,75,66,105,94,106,121,114,79,112,110,108,66,168,181,247,242,312,319,329,294,276,333,299,304,330,323,325,311,348,338,332,349,420,422,629,606,587,579,825,748,781,854,915,848,1574,1360,29981,29982]} 1. d4 {[%emt 0:00:07]} d5 {[%emt 0:00:31]} 2. c4 {[%emt 0:00:10]} e6 {[%emt 0:00:15]} 3. Nf3 {[%emt 0:00:18]} Nf6 {[%emt 0:00:36]} 4. Nc3 {[%emt 0:00:13]} c6 {[%emt 0:00:18]} 5. e3 {[%emt 0:00:17]} Nbd7 {[%emt 0:00:37]} 6. Qc2 {[%emt 0:00:14]} Bd6 {[%emt 0:00:31]} 7. g4 {[%emt 0:00:17]} dxc4 {[%emt 0:01:45]} 8. Bxc4 {[%emt 0:00:24]} e5 {[%emt 0:00:44]} 9. g5 {[%emt 0:00:14] D45: Semi-Slav: 5 e3.} Nd5 {[%emt 0:00:55]} 10. Ne4 {[%emt 0:00:15]} Bb4+ {[%emt 0:17:07]} 11. Bd2 {[%emt 0:01:04] White is slightly better.} Bxd2+ {[%emt 0:03:52]} 12. Qxd2 {[%emt 0:01:14]} (12. Kxd2 O-O 13. Qb3 (13. Nxe5 $2 Nxe5 14. Be2 Re8 $19) 13... exd4 14. Nxd4 Ne5 $17) 12... Qe7 {[%emt 0:05:00]} 13. O-O-O {[%emt 0:08:45]} N7b6 {[%emt 0:04:34]} 14. Be2 {[%emt 0:01:50]} (14. Nxe5 f6 (14... Nxc4 15. Nxc4 O-O 16. f3 $14) 15. gxf6 gxf6 16. Nxf6+ (16. Bxd5 cxd5 17. Qe2 O-O $19) 16... Qxf6 $17 (16... Nxf6 17. Bf7+ Kd8 18. Rhg1 $17)) 14... exd4 {[%emt 0:06:28]} 15. Qxd4 {[%emt 0:00:36]} O-O {[%emt 0:01:19]} 16. Rhg1 {[%emt 0:14:52] A sharp opening} Kh8 {[%emt 0:03:22]} (16... Bf5 $11 17. Nf6+ Kh8) 17. h4 $146 {[%emt 0:08:27][%cal Bh2h4,Bh4h5,Bh5h6][%mdl 32]} (17. Qc5 Re8 18. Qxe7 Rxe7 19. Nd6) (17. Ne5 Be6 18. Nc5 Bf5 19. Bh5 f6 20. gxf6 Nxf6 21. Rg5 Nxh5 22. Rxh5 Rad8 23. Rxf5 Rxd4 24. Rxf8+ Qxf8 25. exd4 Qxf2 {0-1 Popovics,A (2434)-Horvath,C (2546) HUN-chT 0405 2004 (8)}) 17... Be6 {[%emt 0:07:22][%cal Oc6c5]} 18. h5 {[%emt 0:04:20]} (18. Qc5 {simplifies} Nd7 19. Qxe7 Nxe7 20. Nd4) 18... Qb4 {[%emt 0:00:35]} (18... f6 $14) 19. h6 {[%emt 0:02:15] White has a king side majority} Qxd4 {[%emt 0:00:52]} 20. Nxd4 {[%emt 0:00:11][%cal Og5g6] [#]} g6 {[%emt 0:11:41]} 21. Nc5 {[%emt 0:08:42]} Bc8 {[%emt 0:06:17]} 22. Bf3 {[%emt 0:03:31] White has more active pieces.} Nc4 {[%emt 0:02:44]} 23. b3 $36 {[%emt 0:03:30][%mdl 2048] Black is under strong pressure.} Ne5 {[%emt 0:08:03]} 24. Bxd5 {[%emt 0:02:59]} cxd5 {[%emt 0:00:04]} 25. Nd3 {[%emt 0:06:13]} Nxd3+ {[%emt 0:02:03]} 26. Rxd3 {[%emt 0:00:21]} Bd7 {[%emt 0:00:35]} 27. Rc3 {[%emt 0:06:27]} Kg8 {[%emt 0:02:47]} (27... Rac8 $14 28. Rxc8 Rxc8+ 29. Kb2 Kg8) 28. Kd2 $18 {[%emt 0:00:19]} Rac8 {[%emt 0:00:58]} (28... Rfc8 $142 29. Rgc1 Kf8) 29. Rgc1 {[%emt 0:01:29]} f6 {[%emt 0:01:05] [#]} 30. Rc7 {[%emt 0:01:10]} ({Not} 30. Rxc8 Rxc8 31. Rg1 (31. gxf6 Rxc1 32. Kxc1 Kf7 $11) 31... Kf7 $16) 30... Bc6 {[%emt 0:02:47]} 31. Rg7+ {[%emt 0:03:20]} Kh8 {[%emt 0:00:01]} 32. gxf6 {[%emt 0:03:25]} Rxf6 {[%emt 0:00:21]} 33. f4 {[%emt 0:00:40]} Rg8 {[%emt 0:01:07]} 34. Rc7 {[%emt 0:04:02]} g5 {[%emt 0:01:45]} 35. Nxc6 {[%emt 0:01:22]} bxc6 {[%emt 0:01:03]} 36. R1xc6 {[%emt 0:00:10]} ({Don't play} 36. R7xc6 Rf5 37. fxg5 Rf2+ 38. Kd3 Rxa2 $18) 36... Rxc6 {[%emt 0:00:50]} 37. Rxc6 {[%emt 0:00:04]} gxf4 {[%emt 0:01:11]} 38. exf4 {[%emt 0:00:27][%mdl 4096] Endgame KR-KR. White is a pawn up.} Rg2+ {[%emt 0:01:31]} (38... Rf8 $142 39. Rd6 Kg8) 39. Kd3 {[%emt 0:00:21]} Kg8 {[%emt 0:00:50]} 40. Ra6 {[%emt 0:06:26]} Rg4 {[%emt 0:02:57]} 41. Rxa7 {[%emt 0:37:17]} Rg6 {[%emt 0:04:15]} 42. b4 {[%emt 0:00:00][%cal Oa7g7,Bb3b4,Bb4b5][%mdl 32]} Rxh6 {[%emt 0:00:21]} 43. b5 {[%emt 0:00:00] Hoping for Kd4.} Rf6 {[%emt 0:01:50]} 44. a4 {[%emt 0:00:00][%cal Ba2a4,Ba4a5][%mdl 32] a5 would kill now.} h5 {[%emt 0:01:04]} 45. a5 {[%emt 0:00:00] Weighted Error Value: White=0.13 (very precise) /Black=0.55  Mistake:       	---       	Black=5      Inaccurate:     	White=3     	Black=3      OK:         	White=11    	Black=10     Best:        	White=3     	Black=3} 1-0

[Event "FIDE WSTC Open 50 2025"]
[Site "Prague"]
[Date "2025.02.25"]
[Round "8.22"]
[White "Burnett, Andrew"]
[Black "Obsivac, Josef"]
[Result "1-0"]
[Annotator "TA"]
[ECO "E73"]
[WhiteElo "2147"]
[BlackElo "2262"]
[PlyCount "163"]
[EventDate "2025.02.17"]
[EventType "team-tourn"]
[EventCountry "CZE"]
[SourceTitle "playchess.com"]
[Source "ChessBase"]
[SourceQuality "1"]
[TimeControl "40/5400+30:1800+30"]

{[%evp 14,163,57,47,34,22,13,17,9,12,7,0,6,4,29,2,23,25,47,0,0,-2,0,0,0,-104,0,-46,39,-8,-3,-104,-61,-54,0,0,25,45,88,120,180,154,178,175,173,-54,-109,-186,-191,-268,-110,-122,0,0,0,0,172,184,426,426,425,269,241,82,73,0,0,0,0,0,0,0,0,0,0,-3,-4,-82,-76,-134,-110,-119,0,0,0,0,0,0,0,0,0,0,0,0,0,0,0,0,0,0,0,0,0,0,0,0,0,0,0,0,0,0,0,0,0,0,0,0,0,0,0,0,0,0,0,0,0,0,0,0,0,0,0,0,4,0,0,0,74,80,5089,5385,4756,4204,29973,29981,29980,29979,29980,29980,29984,29985]} 1. d4 {[%emt 0:00:06]} Nf6 {[%emt 0:00:09]} 2. c4 {[%emt 0:00:14]} g6 {[%emt 0:00:20]} 3. Nc3 {[%emt 0:00:26]} Bg7 {[%emt 0:00:13]} 4. e4 {[%emt 0:00:08]} d6 {[%emt 0:00:10]} 5. Be2 {[%emt 0:00:15]} O-O {[%emt 0:00:46]} 6. Be3 {[%emt 0:00:17]} e5 {[%emt 0:00:29]} 7. d5 {[%emt 0:00:23]} Na6 {[%emt 0:00:25]} 8. h4 {[%emt 0:01:10][%cal Bh2h4,Bh4h5,Bh5h6][%mdl 32]} Nc5 {[%emt 0:00:45] E73: King's Indian: Averbakh Variation without 6...c5.} 9. Qc2 {[%emt 0:00:10]} c6 {[%emt 0:00:52]} 10. h5 {[%emt 0:00:38]} cxd5 {[%emt 0:00:59] The position is equal.} 11. cxd5 {[%emt 0:01:08]} Qa5 {[%emt 0:01:47]} 12. h6 {[%emt 0:00:21]} Bh8 {[%emt 0:00:08]} 13. f3 {[%emt 0:01:08]} Nh5 {[%emt 0:06:02]} (13... Bd7 $5) 14. Rb1 {[%emt 0:00:23]} Ng3 {[%emt 0:06:14]} 15. b4 {[%emt 0:00:11]} Qd8 {[%emt 0:00:06] [#] A sharp opening} 16. bxc5 {[%emt 0:00:06]} Nxh1 $11 {[%emt 0:00:25]} 17. c6 $132 {[%emt 0:00:14][%mdl 2048] White is fighting back} bxc6 {[%emt 0:03:38]} 18. dxc6 {[%emt 0:00:23]} Qh4+ $146 {[%emt 0:24:50]} ({Predecessor:} 18... Be6 19. Ba6 Bf6 20. Bb7 Bh4+ 21. Kd1 Bg5 22. Bxg5 Qxg5 23. Qd2 Qd8 24. Bxa8 Qxa8 {1-0 Sieciechowicz,M (2406)-Vortmeier,J (2244) Krakow op 2024 (1)}) 19. Kd2 {[%emt 0:03:39]} (19. Kd1 $11) 19... Ng3 {[%emt 0:28:37]} (19... Bf6 $1 $17 20. Nb5 Bg5) 20. Bc4 {[%emt 0:10:11]} (20. Nd5 $11) 20... Bf6 {[%emt 0:02:37]} (20... Nf5 $15) 21. Nd5 {[%emt 0:17:03]} (21. Qd3 $1 $14) 21... Bg5 {[%emt 0:00:03]} 22. Nc7 {[%emt 0:10:36] Repels Be6} (22. Ne2 $1 $11) 22... d5 {[%emt 0:08:59]} 23. Bxd5 {[%emt 0:04:29]} Bxe3+ {[%emt 0:01:01]} (23... Nf5 $1 $15 24. Bxg5 (24. Nxa8 $2 Nxe3 25. Bxf7+ Rxf7 $19) 24... Qxg5+ 25. f4 Qxf4+ (25... exf4 26. Nxa8 f3+ 27. Kc3 $14) (25... Qxg2+ 26. Kc3 $18) 26. Ke1 Ne3) 24. Kxe3 {[%emt 0:00:42]} Qxh6+ {[%emt 0:02:12]} (24... Nf5+ $5 25. exf5 Bxf5 $11) 25. Kd3 {[%emt 0:01:39][%cal Og1e2] Active counter play!} Qg5 {[%emt 0:03:58][%cal Og3h5]} 26. Qc5 $1 {[%emt 0:08:32][%csl Od5][%cal Od3c3] Strong Square White (d5) Really sharp!} (26. Nxa8 Ba6+ 27. Kc3 Qe3+ 28. Kb4 Qd4+ (28... Rxa8 $2 29. Ka5 $18) (28... Bd3 29. Qc3 $16) 29. Ka5 Bd3 $19) 26... Nh5 {[%emt 0:03:18]} 27. Nxa8 $18 {[%emt 0:03:02]} Ba6+ {[%emt 0:01:08]} 28. Kc3 {[%emt 0:01:18]} Rxa8 {[%emt 0:00:33]} 29. Qf2 $2 {[%emt 0:13:57]} (29. Rd1 $18) 29... Qe7 $1 $15 {[%emt 0:00:29]} 30. Rb3 {[%emt 0:04:55]} (30. Ne2 $17) 30... Nf4 $19 {[%emt 0:00:22]} 31. g3 {[%emt 0:02:33]} (31. Nh3 $142 Nxd5+ 32. exd5) 31... Ne6 {[%emt 0:00:57]} (31... Nxd5+ $1 $19 {and Black stays clearly on top.} 32. exd5 Rd8) 32. Bxe6 {[%emt 0:02:44]} Qxe6 {[%emt 0:00:25]} ({Better is} 32... fxe6 $17 33. Kc2 Qd6) 33. Qc5 $11 {[%emt 0:03:37] Successful Defense White} Rd8 {[%emt 0:00:52]} (33... Rc8 $5 34. c7 $8 f6 $11) 34. c7 {[%emt 0:01:20]} Rd4 {[%emt 0:01:17]} (34... Rd3+ $11 {and Black has nothing to worry.} 35. Kb2 Rd2+ 36. Kc1 Rd4 (36... Rxa2 37. Rb8+ Kg7 38. Qf8+ Kf6 39. Qd8+ Kg7 40. Qf8+ Kf6 41. Qd8+ Kg7 42. Qf8+ $11) 37. Rb8+ (37. Qxa7 Qc6+ 38. Kb2 Rd2+ 39. Ka3 Qd6+ 40. Rb4 Rd3+ 41. Kb2 Qxb4+ 42. Kc2 Rd2+ 43. Kc1 Qb2#) 37... Bc8) 35. Rb8+ $18 {[%emt 0:01:00]} (35. Qxa7 Qc6+ (35... Qc4+ $2 36. Kb2 $19) 36. Kb2 Rd2+ 37. Ka3 Qd6+ 38. Rb4 Rd3+ 39. Kb2 Qxb4+ 40. Kc2 Rd2+ 41. Kc1 Qb2#) 35... Bc8 $2 {[%emt 0:00:34]} (35... Kg7 {was worth a try.} 36. Qf8+ (36. c8=B $2 Rc4+ 37. Kb3 Qf6 $19) (36. c8=Q Rd3+ 37. Kb2 Bxc8 $16) 36... Kf6) 36. Ne2 {[%emt 0:02:12]} (36. Qxa7 Qc4+ 37. Kb2 Rd2+ 38. Ka1 Qc3+ 39. Kb1 Rd1#) 36... Ra4 {[%emt 0:00:44]} 37. a3 {[%emt 0:01:19] Black is weak on the dark squares} Ra6 {[%emt 0:00:19]} 38. Kb2 $2 {[%emt 0:01:23]} (38. Kd2 $1 $18 {has better winning chances.}) 38... Kg7 $16 {[%emt 0:01:00] [#]} 39. Nc3 {[%emt 0:02:49]} (39. Rxc8 $1 $16 {[%cal Oc8g8] Threatens to win with Rg8+!.} Qxc8 40. Kc1 (40. Qxe5+ Kg8 $11)) 39... Rc6 $11 {[%emt 0:00:40]} 40. Qxa7 {[%emt 0:01:11]} Qc4 {[%emt 0:00:33]} 41. Qa5 {[%emt 0:04:26]} Rc5 {[%emt 0:01:59]} 42. Qb4 {[%emt 0:02:08]} Rxc7 {[%emt 0:02:29]} 43. Qxc4 {[%emt 0:00:33]} Rxc4 {[%emt 0:00:02][%mdl 4096] Endgame KRB-KRN} 44. Nd5 {[%emt 0:01:19]} Be6 {[%emt 0:02:14]} 45. Nb6 {[%emt 0:00:28]} (45. Rb4 $11 Rc5 46. Ne3) 45... Rd4 $17 {[%emt 0:01:16]} 46. Kc3 {[%emt 0:01:17]} (46. Kc2 $142) 46... Rd1 {[%emt 0:01:52]} 47. a4 {[%emt 0:00:16] [#]} Ra1 {[%emt 0:11:01]} (47... Rf1 48. Nd5 Rxf3+ 49. Kb2 Rxg3 50. a5 Rg2+ 51. Ka3) (47... h5 $1 $17 {Hoping for ...Rg1.} 48. a5 Rb1 (48... Rf1 49. Nd5 $15)) 48. Kb4 $11 {[%emt 0:03:26]} Bh3 {[%emt 0:00:15]} 49. Re8 {[%emt 0:00:27]} Bg2 {[%emt 0:01:50]} 50. Rxe5 {[%emt 0:01:32]} Bxf3 {[%emt 0:00:12]} 51. a5 {[%emt 0:01:05]} h5 {[%emt 0:03:16]} 52. Na4 {[%emt 0:01:46]} Be2 {[%emt 0:01:12]} 53. Nc3 {[%emt 0:00:09]} Bf1 {[%emt 0:00:20]} 54. Rd5 {[%emt 0:00:33]} Kf6 {[%emt 0:03:00]} 55. Rd2 {[%emt 0:02:05]} Kg5 {[%emt 0:01:47]} 56. Rf2 {[%emt 0:00:59]} f5 {[%emt 0:01:29]} 57. exf5 {[%emt 0:04:47]} gxf5 {[%emt 0:00:01]} 58. Rf4 {[%emt 0:00:10]} Ba6 {[%emt 0:01:26]} 59. Rd4 {[%emt 0:00:30]} Bf1 {[%emt 0:01:25]} 60. Rd8 {[%emt 0:04:05]} Kg4 {[%emt 0:00:40]} 61. Rg8+ {[%emt 0:00:19]} Kf3 {[%emt 0:00:23]} 62. Rg5 {[%emt 0:00:56][%csl LRf5,LRh5]} Bd3 {[%emt 0:00:14]} 63. Nd5 {[%emt 0:00:32]} Rg1 {[%emt 0:01:55]} 64. Nf4 {[%emt 0:00:27]} Be4 {[%emt 0:00:59]} 65. Nxh5 {[%emt 0:01:10]} Rb1+ {[%emt 0:00:03]} 66. Kc5 {[%emt 0:00:18]} Rc1+ {[%emt 0:00:05]} 67. Kb6 {[%emt 0:00:53]} Rb1+ {[%emt 0:00:17]} 68. Ka6 {[%emt 0:00:41]} Bd3+ {[%emt 0:00:24]} 69. Ka7 {[%emt 0:00:05]} Ra1 {[%emt 0:00:33]} 70. Kb6 {[%emt 0:00:58]} Rb1+ {[%emt 0:00:07]} 71. Kc5 {[%emt 0:00:30]} Ra1 {[%emt 0:00:40]} 72. Kb4 {[%emt 0:00:46]} Rb1+ {[%emt 0:00:58]} 73. Kc3 {[%emt 0:00:06]} Be4 {[%emt 0:00:47]} 74. Rg6 {[%emt 0:00:32]} Rb5 {[%emt 0:01:04]} 75. a6 {[%emt 0:05:20]} Rc5+ {[%emt 0:00:34]} (75... f4 $11 {remains equal.} 76. Rh6 (76. Nxf4 Bxg6 77. Nxg6 Ra5 $17) 76... fxg3 77. Rf6+ Kg4) 76. Kb4 $16 {[%emt 0:00:30]} Rc6 $2 {[%emt 0:00:32][%mdl 8192] This costs Black the game.} (76... Rc7 $16) 77. Rxc6 $18 {[%emt 0:01:01]} Bxc6 {[%emt 0:00:02]} 78. Ng7 {[%emt 0:00:12]} Kxg3 {[%emt 0:01:00]} 79. Nxf5+ {[%emt 0:00:04] White mates.} Kf4 {[%emt 0:00:06]} 80. Kc5 {[%emt 0:00:16]} Ba8 {[%emt 0:00:47]} 81. Nd6 {[%emt 0:00:08]} Ke5 {[%emt 0:00:28]} 82. Nb7 {[%emt 0:00:14] Weighted Error Value: White=0.34/Black=0.29 (precise)   Loses game:     	---       	Black=2      Missed win:     	White=1     	---        Mistake:       	White=11    	Black=9      Inaccurate:     	White=2     	Black=2      OK:         	White=23    	Black=35     Best:        	White=6     	Black=4      Strong:       	White=1     	Black=1} 1-0